Workbook

Sheet Column No1
B1: version: 1.0. | M1: © 2014 Damian Janicki
D2: YourSpreadsheets™ 2nd Floor, 52 Marcus Hill, London www.YourSpreadsheets.co.uk Tel: 020 7542 8734 | L2: TEST PROJECT
P3: Revision: | Q3: B
L4: Job No: | N4: 22668 | P4: Page: | Q4: C/01
C5: Column: | D5: AT GRIDLINE A-5 | L5: Calcs By: | N5: DJ | P5: Date: | Q5: =TODAY() -> 2014-12-30
C7: BUILDING DATA | L7: LOADING DATA
C8: Number of storeys above ground: | J8: 24 | L8: Permanent and S.Permanent load safety factor: | R8: 1.35 | U8: Imposed load reduction:
C9: Number of storeys below ground: | J9: 10 | L9: Variable load safety factor: | R9: 1.5 | U9: include
C10: ="Unfactored "&IF($C$5=$U$13,"column","wall")&" self weight [kN per storey]:" -> Unfactored column self weight [kN per storey]: | J10: 12.5 | L10: Variable load reduction: | R10: include | U10: ignore
C11: =IF($J$8+$J$9>34,"Maximum number of storeys (above and below ground) is 34. Revise your input.","") -> 
C12: LOAD TAKE DOWN: | K12: =INDEX($V$13:$V$14,MATCH($C$5,$U$13:$U$14,0))&" "&$D$5 -> COLUMN AT GRIDLINE A-5 | U12: Element:
C13: LEVEL | D13: LOADED AREA [m] | F13: UNFACTORED FLOOR LOADS [kN/m2] | I13: UNF. WALL LOAD | K13: UNF. LOADS PER LEVEL [kN] | N13: TOTAL UNF. LOADS [kN] | P13: VARIABLE LOAD RED. [%] | Q13: TOTAL FACTORED LOADS [kN] | U13: Column: | V13: COLUMN
I14: [m] | J14: [kN/m] | U14: Wall: | V14: WALL
D15: X dir. | E15: Y dir. | F15: PERM. | G15: S.PERM. | H15: VARIABLE | I15: LENGTH | J15: LOAD | K15: PERM. | M15: VARIABLE | N15: PERM. | O15: VARIABLE | Q15: PERM. | R15: VARIABLE
C16: =J8 -> 24 | D16: 6 | E16: 6 | F16: 6 | G16: 6 | H16: 6 | I16: =D16 -> 6 | J16: 0 | K16: =D16*E16*(F16+G16)+I16*J16 -> 432 | M16: =D16*E16*H16 -> 216 | N16: =K16 -> 432 | O16: =M16 -> 216 | P16: 0 | Q16: =$R$8*N16 -> 583.2 | R16: =$R$9*O16*(1-P16/100) -> 324 | T16: 1
C17: =IF($J$8=T16,"Gr. floor",IF(AND($J$8<T16,T16<$J$8+$J$9+1),"B-"&T16-$J$8,IF($C$16-T16<1,"",$C$16-T16))) -> 23 | D17: 6 | E17: 6 | F17: 6 | G17: 6 | H17: 6 | I17: =D17 -> 6 | J17: 12 | K17: =IF(C17="","",$J$10+D17*E17*(F17+G17)+I17*J17) -> 516.5 | M17: =IF(C17="","",D17*E17*H17) -> 216 | N17: =IF(C17="","",K17+N16) -> 948.5 | O17: =IF(C17="","",M17+O16) -> 432 | P17: =IF($R$10=$U$9,IF(T17<$J$8+$J$9+2,INDEX('from author'!$W$3:$X$8,MATCH(T17-1,'from author'!$W$3:$W$8,1),2),0),0) -> 0 | Q17: =IF(C17="","",$R$8*N17) -> 1280.475 | R17: =IF(C17="","",$R$9*O17*(1-P17/100)) -> 648 | T17: 2
C18: 22 | D18: 6 | E18: 6 | F18: 6 | G18: 6 | H18: 6 | I18: 6 | J18: 12 | K18: =IF(C18="","",$J$10+D18*E18*(F18+G18)+I18*J18) -> 516.5 | M18: 216 | N18: =IF(C18="","",K18+N17) -> 1465 | O18: 648 | P18: =IF($R$10=$U$9,IF(T18<$J$8+$J$9+2,INDEX('from author'!$W$3:$X$8,MATCH(T18-1,'from author'!$W$3:$W$8,1),2),0),0) -> 10 | Q18: 1977.75 | R18: 874.8 | T18: 3
C19: 21 | D19: 6 | E19: 6 | F19: 6 | G19: 6 | H19: 6 | I19: 6 | J19: 12 | K19: 516.5 | M19: 216 | N19: =IF(C19="","",K19+N18) -> 1981.5 | O19: 864 | P19: =IF($R$10=$U$9,IF(T19<$J$8+$J$9+2,INDEX('from author'!$W$3:$X$8,MATCH(T19-1,'from author'!$W$3:$W$8,1),2),0),0) -> 20 | Q19: 2675.025 | R19: 1036.8 | T19: 4
C20: 20 | D20: 6 | E20: 6 | F20: 6 | G20: 6 | H20: 6 | I20: 6 | J20: 12 | K20: 516.5 | M20: 216 | N20: 2498 | O20: 1080 | P20: =IF($R$10=$U$9,IF(T20<$J$8+$J$9+2,INDEX('from author'!$W$3:$X$8,MATCH(T20-1,'from author'!$W$3:$W$8,1),2),0),0) -> 30 | Q20: 3372.3 | R20: 1134 | T20: 5
C21: 19 | D21: 6 | E21: 6 | F21: 6 | G21: 6 | H21: 6 | I21: 6 | J21: 12 | K21: 516.5 | M21: 216 | N21: 3014.5 | O21: 1296 | P21: =IF($R$10=$U$9,IF(T21<$J$8+$J$9+2,INDEX('from author'!$W$3:$X$8,MATCH(T21-1,'from author'!$W$3:$W$8,1),2),0),0) -> 40 | Q21: 4069.575 | R21: 1166.4 | T21: 6
C22: 18 | D22: 6 | E22: 6 | F22: 6 | G22: 6 | H22: 6 | I22: 6 | J22: 12 | K22: 516.5 | M22: 216 | N22: 3531 | O22: 1512 | P22: =IF($R$10=$U$9,IF(T22<$J$8+$J$9+2,INDEX('from author'!$W$3:$X$8,MATCH(T22-1,'from author'!$W$3:$W$8,1),2),0),0) -> 40 | Q22: 4766.85 | R22: 1360.8 | T22: 7
C23: 17 | D23: 6 | E23: 6 | F23: 6 | G23: 6 | H23: 6 | I23: 6 | J23: 12 | K23: 516.5 | M23: 216 | N23: 4047.5 | O23: 1728 | P23: =IF($R$10=$U$9,IF(T23<$J$8+$J$9+2,INDEX('from author'!$W$3:$X$8,MATCH(T23-1,'from author'!$W$3:$W$8,1),2),0),0) -> 40 | Q23: 5464.125 | R23: 1555.2 | T23: 8
C24: 16 | D24: 6 | E24: 6 | F24: 6 | G24: 6 | H24: 6 | I24: 6 | J24: 12 | K24: 516.5 | M24: 216 | N24: 4564 | O24: 1944 | P24: =IF($R$10=$U$9,IF(T24<$J$8+$J$9+2,INDEX('from author'!$W$3:$X$8,MATCH(T24-1,'from author'!$W$3:$W$8,1),2),0),0) -> 40 | Q24: 6161.4 | R24: 1749.6 | T24: 9
C25: 15 | D25: 6 | E25: 6 | F25: 6 | G25: 6 | H25: 6 | I25: 6 | J25: 12 | K25: 516.5 | M25: 216 | N25: 5080.5 | O25: 2160 | P25: =IF($R$10=$U$9,IF(T25<$J$8+$J$9+2,INDEX('from author'!$W$3:$X$8,MATCH(T25-1,'from author'!$W$3:$W$8,1),2),0),0) -> 40 | Q25: 6858.675 | R25: 1944 | T25: 10
C26: 14 | D26: 6 | E26: 6 | F26: 6 | G26: 6 | H26: 6 | I26: 6 | J26: 12 | K26: 516.5 | M26: 216 | N26: 5597 | O26: 2376 | P26: =IF($R$10=$U$9,IF(T26<$J$8+$J$9+2,INDEX('from author'!$W$3:$X$8,MATCH(T26-1,'from author'!$W$3:$W$8,1),2),0),0) -> 40 | Q26: 7555.95 | R26: 2138.4 | T26: 11
C27: 13 | D27: 6 | E27: 6 | F27: 6 | G27: 6 | H27: 6 | I27: 6 | J27: 12 | K27: 516.5 | M27: 216 | N27: 6113.5 | O27: 2592 | P27: =IF($R$10=$U$9,IF(T27<$J$8+$J$9+2,INDEX('from author'!$W$3:$X$8,MATCH(T27-1,'from author'!$W$3:$W$8,1),2),0),0) -> 50 | Q27: 8253.225 | R27: 1944 | T27: 12
C28: 12 | D28: 6 | E28: 6 | F28: 6 | G28: 6 | H28: 6 | I28: 6 | J28: 12 | K28: 516.5 | M28: 216 | N28: 6630 | O28: 2808 | P28: =IF($R$10=$U$9,IF(T28<$J$8+$J$9+2,INDEX('from author'!$W$3:$X$8,MATCH(T28-1,'from author'!$W$3:$W$8,1),2),0),0) -> 50 | Q28: 8950.5 | R28: 2106 | T28: 13
C29: 11 | D29: 6 | E29: 6 | F29: 6 | G29: 6 | H29: 6 | I29: 6 | J29: 12 | K29: 516.5 | M29: 216 | N29: 7146.5 | O29: 3024 | P29: =IF($R$10=$U$9,IF(T29<$J$8+$J$9+2,INDEX('from author'!$W$3:$X$8,MATCH(T29-1,'from author'!$W$3:$W$8,1),2),0),0) -> 50 | Q29: 9647.775 | R29: 2268 | T29: 14
C30: 10 | D30: 6 | E30: 6 | F30: 6 | G30: 6 | H30: 6 | I30: 6 | J30: 12 | K30: 516.5 | M30: 216 | N30: 7663 | O30: 3240 | P30: =IF($R$10=$U$9,IF(T30<$J$8+$J$9+2,INDEX('from author'!$W$3:$X$8,MATCH(T30-1,'from author'!$W$3:$W$8,1),2),0),0) -> 50 | Q30: 10345.05 | R30: 2430 | T30: 15
C31: 9 | D31: 6 | E31: 6 | F31: 6 | G31: 6 | H31: 6 | I31: 6 | J31: 12 | K31: 516.5 | M31: 216 | N31: 8179.5 | O31: 3456 | P31: =IF($R$10=$U$9,IF(T31<$J$8+$J$9+2,INDEX('from author'!$W$3:$X$8,MATCH(T31-1,'from author'!$W$3:$W$8,1),2),0),0) -> 50 | Q31: 11042.325 | R31: 2592 | T31: 16
C32: 8 | D32: 6 | E32: 6 | F32: 6 | G32: 6 | H32: 6 | I32: 6 | J32: 12 | K32: 516.5 | M32: 216 | N32: 8696 | O32: 3672 | P32: =IF($R$10=$U$9,IF(T32<$J$8+$J$9+2,INDEX('from author'!$W$3:$X$8,MATCH(T32-1,'from author'!$W$3:$W$8,1),2),0),0) -> 50 | Q32: 11739.6 | R32: 2754 | T32: 17
C33: 7 | D33: 6 | E33: 6 | F33: 6 | G33: 6 | H33: 6 | I33: 6 | J33: 12 | K33: 516.5 | M33: 216 | N33: 9212.5 | O33: 3888 | P33: =IF($R$10=$U$9,IF(T33<$J$8+$J$9+2,INDEX('from author'!$W$3:$X$8,MATCH(T33-1,'from author'!$W$3:$W$8,1),2),0),0) -> 50 | Q33: 12436.875 | R33: 2916 | T33: 18
C34: 6 | D34: 6 | E34: 6 | F34: 6 | G34: 6 | H34: 6 | I34: 6 | J34: 12 | K34: 516.5 | M34: 216 | N34: 9729 | O34: 4104 | P34: =IF($R$10=$U$9,IF(T34<$J$8+$J$9+2,INDEX('from author'!$W$3:$X$8,MATCH(T34-1,'from author'!$W$3:$W$8,1),2),0),0) -> 50 | Q34: 13134.15 | R34: 3078 | T34: 19
C35: 5 | D35: 6 | E35: 6 | F35: 6 | G35: 6 | H35: 6 | I35: 6 | J35: 12 | K35: 516.5 | M35: 216 | N35: 10245.5 | O35: 4320 | P35: =IF($R$10=$U$9,IF(T35<$J$8+$J$9+2,INDEX('from author'!$W$3:$X$8,MATCH(T35-1,'from author'!$W$3:$W$8,1),2),0),0) -> 50 | Q35: 13831.425 | R35: 3240 | T35: 20
C36: 4 | D36: 6 | E36: 6 | F36: 6 | G36: 6 | H36: 6 | I36: 6 | J36: 12 | K36: 516.5 | M36: 216 | N36: 10762 | O36: 4536 | P36: =IF($R$10=$U$9,IF(T36<$J$8+$J$9+2,INDEX('from author'!$W$3:$X$8,MATCH(T36-1,'from author'!$W$3:$W$8,1),2),0),0) -> 50 | Q36: 14528.7 | R36: 3402 | T36: 21
C37: 3 | D37: 6 | E37: 6 | F37: 6 | G37: 6 | H37: 6 | I37: 6 | J37: 12 | K37: 516.5 | M37: 216 | N37: 11278.5 | O37: 4752 | P37: =IF($R$10=$U$9,IF(T37<$J$8+$J$9+2,INDEX('from author'!$W$3:$X$8,MATCH(T37-1,'from author'!$W$3:$W$8,1),2),0),0) -> 50 | Q37: 15225.975 | R37: 3564 | T37: 22
C38: 2 | D38: 6 | E38: 6 | F38: 6 | G38: 6 | H38: 6 | I38: 6 | J38: 12 | K38: 516.5 | M38: 216 | N38: 11795 | O38: 4968 | P38: =IF($R$10=$U$9,IF(T38<$J$8+$J$9+2,INDEX('from author'!$W$3:$X$8,MATCH(T38-1,'from author'!$W$3:$W$8,1),2),0),0) -> 50 | Q38: 15923.25 | R38: 3726 | T38: 23
C39: 1 | D39: 6 | E39: 6 | F39: 6 | G39: 6 | H39: 6 | I39: 6 | J39: 12 | K39: 516.5 | M39: 216 | N39: 12311.5 | O39: 5184 | P39: =IF($R$10=$U$9,IF(T39<$J$8+$J$9+2,INDEX('from author'!$W$3:$X$8,MATCH(T39-1,'from author'!$W$3:$W$8,1),2),0),0) -> 50 | Q39: 16620.525 | R39: 3888 | T39: 24
C40: Gr. floor | D40: 6 | E40: 6 | F40: 6 | G40: 6 | H40: 6 | I40: 6 | J40: 12 | K40: 516.5 | M40: 216 | N40: 12828 | O40: 5400 | P40: =IF($R$10=$U$9,IF(T40<$J$8+$J$9+2,INDEX('from author'!$W$3:$X$8,MATCH(T40-1,'from author'!$W$3:$W$8,1),2),0),0) -> 50 | Q40: 17317.8 | R40: 4050 | T40: 25
C41: B-1 | D41: 6 | E41: 6 | F41: 6 | G41: 6 | H41: 6 | I41: 6 | J41: 12 | K41: 516.5 | M41: 216 | N41: 13344.5 | O41: 5616 | P41: =IF($R$10=$U$9,IF(T41<$J$8+$J$9+2,INDEX('from author'!$W$3:$X$8,MATCH(T41-1,'from author'!$W$3:$W$8,1),2),0),0) -> 50 | Q41: 18015.075 | R41: 4212 | T41: 26
C42: B-2 | D42: 6 | E42: 6 | F42: 6 | G42: 6 | H42: 6 | I42: 6 | J42: 12 | K42: 516.5 | M42: 216 | N42: 13861 | O42: 5832 | P42: =IF($R$10=$U$9,IF(T42<$J$8+$J$9+2,INDEX('from author'!$W$3:$X$8,MATCH(T42-1,'from author'!$W$3:$W$8,1),2),0),0) -> 50 | Q42: 18712.35 | R42: 4374 | T42: 27
C43: B-3 | D43: 6 | E43: 6 | F43: 6 | G43: 6 | H43: 6 | I43: 6 | J43: 12 | K43: 516.5 | M43: 216 | N43: 14377.5 | O43: 6048 | P43: =IF($R$10=$U$9,IF(T43<$J$8+$J$9+2,INDEX('from author'!$W$3:$X$8,MATCH(T43-1,'from author'!$W$3:$W$8,1),2),0),0) -> 50 | Q43: 19409.625 | R43: 4536 | T43: 28
C44: B-4 | D44: 6 | E44: 6 | F44: 6 | G44: 6 | H44: 6 | I44: 6 | J44: 12 | K44: 516.5 | M44: 216 | N44: 14894 | O44: 6264 | P44: =IF($R$10=$U$9,IF(T44<$J$8+$J$9+2,INDEX('from author'!$W$3:$X$8,MATCH(T44-1,'from author'!$W$3:$W$8,1),2),0),0) -> 50 | Q44: 20106.9 | R44: 4698 | T44: 29
C45: B-5 | D45: 6 | E45: 6 | F45: 6 | G45: 6 | H45: 6 | I45: 6 | J45: 12 | K45: 516.5 | M45: 216 | N45: 15410.5 | O45: 6480 | P45: =IF($R$10=$U$9,IF(T45<$J$8+$J$9+2,INDEX('from author'!$W$3:$X$8,MATCH(T45-1,'from author'!$W$3:$W$8,1),2),0),0) -> 50 | Q45: 20804.175 | R45: 4860 | T45: 30
C46: B-6 | D46: 6 | E46: 6 | F46: 6 | G46: 6 | H46: 6 | I46: 6 | J46: 12 | K46: 516.5 | M46: 216 | N46: 15927 | O46: 6696 | P46: =IF($R$10=$U$9,IF(T46<$J$8+$J$9+2,INDEX('from author'!$W$3:$X$8,MATCH(T46-1,'from author'!$W$3:$W$8,1),2),0),0) -> 50 | Q46: 21501.45 | R46: 5022 | T46: 31
C47: B-7 | D47: 6 | E47: 6 | F47: 6 | G47: 6 | H47: 6 | I47: 6 | J47: 12 | K47: 516.5 | M47: 216 | N47: 16443.5 | O47: 6912 | P47: =IF($R$10=$U$9,IF(T47<$J$8+$J$9+2,INDEX('from author'!$W$3:$X$8,MATCH(T47-1,'from author'!$W$3:$W$8,1),2),0),0) -> 50 | Q47: 22198.725 | R47: 5184 | T47: 32
C48: B-8 | D48: 6 | E48: 6 | F48: 6 | G48: 6 | H48: 6 | I48: 6 | J48: 12 | K48: 516.5 | M48: 216 | N48: 16960 | O48: 7128 | P48: =IF($R$10=$U$9,IF(T48<$J$8+$J$9+2,INDEX('from author'!$W$3:$X$8,MATCH(T48-1,'from author'!$W$3:$W$8,1),2),0),0) -> 50 | Q48: 22896 | R48: 5346 | T48: 33
C49: B-9 | D49: 6 | E49: 6 | F49: 6 | G49: 6 | H49: 6 | I49: 6 | J49: 12 | K49: 516.5 | M49: 216 | N49: 17476.5 | O49: 7344 | P49: =IF($R$10=$U$9,IF(T49<$J$8+$J$9+2,INDEX('from author'!$W$3:$X$8,MATCH(T49-1,'from author'!$W$3:$W$8,1),2),0),0) -> 50 | Q49: 23593.275 | R49: 5508 | T49: 34
C50: B-10 | D50: 6 | E50: 6 | F50: 6 | G50: 6 | H50: 6 | I50: 6 | J50: 12 | K50: 516.5 | M50: 216 | N50: 17993 | O50: 7560 | P50: =IF($R$10=$U$9,IF(T50<$J$8+$J$9+2,INDEX('from author'!$W$3:$X$8,MATCH(T50-1,'from author'!$W$3:$W$8,1),2),0),0) -> 50 | Q50: 24290.55 | R50: 5670 | T50: 35
J51: ="TOTAL FACTORED AND REDUCED LOAD ON "&INDEX($V$13:$V$14,MATCH($C$5,$U$13:$U$14,0))&" [kN]:" -> TOTAL FACTORED AND REDUCED LOAD ON COLUMN [kN]: | Q51: =INDEX(Q16:R50,$J$8+$J$9+1,1)+INDEX(Q16:R50,$J$8+$J$9+1,2) -> 29960.55
C52: Spreadsheet provided by: www.YourSpreadsheets.co.uk

Sheet from author
B1: Version: 1.0. | G1: © 2014 Damian Janicki
W2: Number of storeys: | X2: Reduction:
C3: For latest updates and news visit: | G3: Contact me at: | W3: 1 | X3: 0
C4: www.YourSpreadsheets.co.uk | G4: info@yourspreadsheets.co.uk | W4: 2 | X4: 10
W5: 3 | X5: 20
W6: 4 | X6: 30
C7: General information: Note: This spreadsheet contains macros. These must be enabled to use this spreadsheet. | W7: 5 | X7: 40
W8: 11 | X8: 50
C13: The Author takes no liability for use of this spreadsheet and gives no guarantee that it is error free. In no event shall the Author be responsible for any special, incidental or consequential damages whatsoever arising from the use of this spreadsheet, even if the Author has been advised of the possibility of such damage. This is a FREE spreadsheet. The spreadsheet can be distributed freely but only in its original form. Reverse-engineering, decompiling or disassembling of this spreadsheet is not allowable. By using this spreadsheet you understand and agree with the above terms and conditions. You also acknowledge that you do not become the owner of this spreadsheet. Damian Janicki
C35: This spreadsheet is in accordance with EN 1991-1 + UK N.A. Changelog: 30.12.2014 - official release of the spreadsheets version 1.0.
